fUST/lending_fUST_20250525
["ID","MTS","AMOUNT","RATE_DAILY","PERIOD"]
[362258606,1748122239686,-341.91244689,0.00022191,2]
[362258608,1748122239695,-430.0,0.00022191,2]
[362258610,1748122239705,-430.0,0.00022191,2]
[362258612,1748122239715,-430.0,0.00022191,2]
[362258615,1748122239724,-430.0,0.00022191,2]
[362258617,1748122239734,-450.0,0.00022191,2]
[362258619,1748122239743,-450.0,0.00022191,2]
[362258621,1748122239753,-340.0,0.00022191,2]
[362258623,1748122239763,-430.0,0.00022191,2]
[362258626,1748122239773,-430.0,0.00022191,2]
[362258628,1748122239782,-430.0,0.00022191,2]
[362258630,1748122239791,-430.0,0.00022191,2]
[362258632,1748122239801,-400.0,0.00022191,2]
[362258634,1748122239810,-342.34602166,0.00022191,2]
[362258636,1748122239820,-440.0,0.00022191,2]
[362258638,1748122239830,-430.0,0.00022191,2]
[362258640,1748122239839,-490.0,0.00022191,2]
[362258642,1748122239849,-430.0,0.00022191,2]
[362258644,1748122239859,-430.0,0.00022191,2]
[362258646,1748122239869,-430.0,0.00022191,2]
[362258648,1748122239878,-430.0,0.00022191,2]
[362258650,1748122239888,-421.89269053,0.00022191,2]
[362258653,1748122239897,-470.0,0.00022191,2]
[362258654,1748122239906,-430.0,0.00022191,2]
[362258657,1748122239916,-430.0,0.00022191,2]
[362258658,1748122239925,-491.08681738,0.00022191,2]
[362258661,1748122239935,-430.0,0.00022191,2]
[362258663,1748122239945,-430.0,0.00022191,2]
[362258665,1748122239955,-430.0,0.00022191,2]
[362258667,1748122239964,-430.0,0.00022191,2]
[362258669,1748122239974,-430.0,0.00022191,2]
[362258671,1748122239983,-430.0,0.00022191,2]
[362258673,1748122239992,-430.0,0.00022191,2]
[362258675,1748122240001,-430.0,0.00022191,2]
[362258677,1748122240011,-430.0,0.00022191,2]
[362258679,1748122240020,-430.0,0.00022191,2]
[362258681,1748122240030,-430.0,0.00022191,2]
[362258683,1748122240039,-578.04,0.00022191,2]
[362258685,1748122240048,-430.0,0.00022191,2]
[362258687,1748122240057,-430.0,0.00022191,2]
[362258689,1748122240066,-430.0,0.00022191,2]
[362258691,1748122240076,-176.33885621,0.00022191,2]
[362258693,1748122240086,-430.0,0.00022191,2]
[362258695,1748122240095,-430.0,0.00022191,2]
[362258697,1748122240104,-430.0,0.00022191,2]
[362258699,1748122240113,-430.0,0.00022191,2]
[362258701,1748122240122,-430.0,0.00022191,2]
[362258703,1748122240131,-430.0,0.00022191,2]
[362258705,1748122240141,-430.0,0.00022191,2]
[362258706,1748122240150,-430.0,0.00022191,2]
[362258709,1748122240159,-450.0,0.00022191,2]
[362258710,1748122240169,-400.0,0.00022191,2]
[362258713,1748122240178,-430.0,0.00022191,2]
[362258715,1748122240188,-400.0,0.00022191,2]
[362258716,1748122240197,-360.0,0.00022191,2]
[362258718,1748122240206,-412.74734466,0.00022191,2]
[362258720,1748122240215,-430.0,0.00022191,2]
[362258722,1748122240225,-430.0,0.00022191,2]
[362258724,1748122240234,-260.0,0.00022191,2]
[362258726,1748122240243,-430.0,0.00022191,2]
[362258728,1748122240253,-348.99525934,0.00022191,2]
[362258730,1748122240263,-430.0,0.00022191,2]
[362258732,1748122240272,-430.0,0.00022191,2]
[362258735,1748122240282,-430.0,0.00022191,2]
[362258737,1748122240293,-430.0,0.00022191,2]
[362258739,1748122240303,-430.0,0.00022191,2]
[362258741,1748122240312,-430.0,0.00022191,2]
[362258743,1748122240321,-430.0,0.00022191,2]
[362258745,1748122240330,-430.0,0.00022191,2]
[362258747,1748122240341,-202.69920574,0.00022191,2]
[362258748,1748122240350,-430.0,0.00022191,2]
[362258751,1748122240360,-430.0,0.00022191,2]
[362258752,1748122240369,-430.0,0.00022191,2]
[362258754,1748122240379,-450.0,0.00022191,2]
[362258756,1748122240388,-430.0,0.00022191,2]
[362258758,1748122240397,-430.0,0.00022191,2]
[362258760,1748122240407,-430.0,0.00022191,2]
[362258762,1748122240416,-430.0,0.00022191,2]
[362258764,1748122240426,-430.0,0.00022191,2]
[362258766,1748122240439,-430.0,0.00022191,2]
[362258768,1748122240448,-430.0,0.00022191,2]
[362258770,1748122240457,-430.0,0.00022191,2]
[362258772,1748122240467,-430.0,0.00022191,2]
[362258774,1748122240478,-430.0,0.00022191,2]
[362258776,1748122240487,-430.0,0.00022191,2]
[362258778,1748122240496,-287.74329638,0.00022191,2]
[362258780,1748122240506,-361.72247428,0.00022191,2]
[362258782,1748122240516,-430.0,0.00022191,2]
[362258784,1748122240526,-430.0,0.00022191,2]
[362258786,1748122240535,-430.0,0.00022191,2]
[362258788,1748122240544,-430.0,0.00022191,2]
[362258790,1748122240553,-430.0,0.00022191,2]
[362258792,1748122240563,-430.0,0.00022191,2]
[362258794,1748122240572,-430.0,0.00022191,2]
[362258795,1748122240582,-430.0,0.00022191,2]
[362258797,1748122240591,-430.0,0.00022191,2]
[362258799,1748122240600,-430.0,0.00022191,2]
[362258801,1748122240610,-404.51258934,0.00022191,2]
[362258803,1748122240619,-430.0,0.00022191,2]
[362258805,1748122240629,-430.0,0.00022191,2]
[362258808,1748122240639,-430.0,0.00022191,2]
[362258809,1748122240648,-430.0,0.00022191,2]
[362258811,1748122240658,-430.0,0.00022191,2]
[362258814,1748122240668,-430.0,0.00022191,2]
[362258816,1748122240677,-323.59601542,0.00022191,2]
[362258817,1748122240687,-430.0,0.00022191,2]
[362258820,1748122240696,-571.85208153,0.00022191,2]
[362258821,1748122240706,-430.0,0.00022191,2]
[362258823,1748122240715,-430.0,0.00022191,2]
[362258825,1748122240724,-430.0,0.00022191,2]
[362258827,1748122240734,-430.0,0.00022191,2]
[362258829,1748122240743,-430.0,0.00022191,2]
[362258831,1748122240753,-430.0,0.00022191,2]
[362258833,1748122240762,-430.0,0.00022191,2]
[362258835,1748122240772,-895.72,0.00022191,2]
[362258837,1748122240781,-2123.03,0.00022191,2]
[362258839,1748122240791,-448.98144659,0.00022191,2]
[362258841,1748122240801,-430.0,0.00022191,2]
[362258843,1748122240810,-430.0,0.00022191,2]
[362258845,1748122240820,-430.0,0.00022191,2]
[362258848,1748122240830,-216.95261598,0.00022191,2]
[362258850,1748122240839,-430.0,0.00022191,2]
[362258852,1748122240849,-1341.19,0.00022191,2]
[362258853,1748122240859,-430.0,0.00022191,2]
[362258855,1748122240868,-430.0,0.00022191,2]
[362258857,1748122240878,-430.0,0.00022191,2]
[362258860,1748122240887,-430.0,0.00022191,2]
[362258862,1748122240897,-430.0,0.00022191,2]
[362258864,1748122240907,-430.0,0.00022191,2]
[362258866,1748122240917,-430.0,0.00022191,2]
[362258868,1748122240926,-430.0,0.00022191,2]
[362258870,1748122240936,-430.0,0.00022191,2]
[362258872,1748122240945,-586.45,0.00022191,2]
[362258873,1748122240955,-430.0,0.00022191,2]
[362258875,1748122240964,-430.0,0.00022191,2]
[362258878,1748122240974,-393.63358657,0.00022191,2]
[362258880,1748122240984,-430.0,0.00022191,2]
[362258882,1748122240993,-664.09,0.00022191,2]
[362258884,1748122241002,-465.13762339,0.00022191,2]
[362258886,1748122241011,-430.0,0.00022191,2]
[362258888,1748122241020,-430.0,0.00022191,2]
[362258889,1748122241029,-327.61351071,0.00022191,2]
[362258892,1748122241038,-430.0,0.00022191,2]
[362258893,1748122241047,-430.0,0.00022191,2]
[362258894,1748122241056,-430.0,0.00022191,2]
[362258896,1748122241065,-430.0,0.00022191,2]
[362258897,1748122241075,-430.0,0.00022191,2]
[362258898,1748122241084,-430.0,0.00022191,2]
[362258899,1748122241094,-430.0,0.00022191,2]
[362258900,1748122241103,-430.0,0.00022191,2]
[362258901,1748122241112,-430.0,0.00022191,2]
[362258902,1748122241123,-327.7256588,0.00022191,2]
[362258903,1748122241132,-430.0,0.00022191,2]
[362258904,1748122241142,-430.0,0.00022191,2]
[362258905,1748122241151,-430.0,0.00022191,2]
[362258906,1748122241161,-430.0,0.00022191,2]
[362258907,1748122241170,-430.0,0.00022191,2]
[362258908,1748122241180,-430.0,0.00022191,2]
[362258909,1748122241190,-430.0,0.00022191,2]
[362258910,1748122241199,-430.0,0.00022191,2]
[362258911,1748122241209,-430.0,0.00022191,2]
[362258912,1748122241218,-158.08173154,0.00022191,2]
[362258913,1748122241228,-430.0,0.00022191,2]
[362258914,1748122241237,-430.0,0.00022191,2]
[362258915,1748122241247,-430.0,0.00022191,2]
[362258916,1748122241256,-288.86864681,0.00022191,2]
[362258917,1748122241266,-430.0,0.00022191,2]
[362258918,1748122241276,-430.0,0.00022191,2]
[362258919,1748122241286,-430.0,0.00022191,2]
[362258920,1748122241296,-430.0,0.00022191,2]
[362258921,1748122241305,-516.78,0.00022191,2]
[362258922,1748122241314,-430.0,0.00022191,2]
[362258923,1748122241324,-430.0,0.00022191,2]
[362258924,1748122241334,-430.0,0.00022191,2]
[362258925,1748122241343,-430.0,0.00022191,2]
[362258927,1748122241353,-430.0,0.00022191,2]
[362258929,1748122241362,-430.0,0.00022191,2]
[362258931,1748122241371,-430.0,0.00022191,2]
[362258933,1748122241380,-430.0,0.00022191,2]
[362258935,1748122241390,-430.0,0.00022191,2]
[362258937,1748122241400,-430.0,0.00022191,2]
[362258939,1748122241409,-430.0,0.00022191,2]
[362258941,1748122241418,-430.0,0.00022191,2]
[362258943,1748122241427,-327.56847809,0.00022191,2]
[362258944,1748122241440,-741.19,0.00022191,2]
[362258945,1748122241450,-430.0,0.00022191,2]
[362258946,1748122241459,-430.0,0.00022191,2]
[362258947,1748122241468,-430.0,0.00022191,2]
[362258948,1748122241478,-430.0,0.00022191,2]
[362258950,1748122241488,-430.0,0.00022191,2]
[362258951,1748122241497,-430.0,0.00022191,2]
[362258952,1748122241506,-430.0,0.00022191,2]
[362258953,1748122241516,-430.0,0.00022191,2]
[362258954,1748122241526,-443.98,0.00022191,2]
[362258956,1748122241535,-430.0,0.00022191,2]
[362258957,1748122241545,-430.0,0.00022191,2]
[362258959,1748122241555,-430.0,0.00022191,2]
[362258960,1748122241565,-430.0,0.00022191,2]
[362258961,1748122241574,-430.0,0.00022191,2]
[362258962,1748122241585,-430.0,0.00022191,2]
[362258963,1748122241595,-390.96119497,0.00022191,2]
[362258964,1748122241605,-430.0,0.00022191,2]
[362258965,1748122241615,-175.43486957,0.00022191,2]
[362258966,1748122241625,-390.88900529,0.00022191,2]
[362258967,1748122241635,-430.0,0.00022191,2]
[362258968,1748122241644,-430.0,0.00022191,2]
[362258969,1748122241654,-430.0,0.00022191,2]
[362258970,1748122241664,-550.59,0.00022191,2]
[362258971,1748122241675,-3763.17,0.00022191,2]
[362258972,1748122241684,-370.0,0.00022191,2]
[362258973,1748122241694,-430.0,0.00022191,2]
[362258974,1748122241704,-434.86,0.00022191,2]
[362258975,1748122241714,-430.0,0.00022191,2]
[362258976,1748122241723,-430.0,0.00022191,2]
[362258977,1748122241732,-430.0,0.00022191,2]
[362258978,1748122241741,-808.91,0.00022191,2]
[362258979,1748122241751,-430.0,0.00022191,2]
[362258980,1748122241760,-439.35,0.00022191,2]
[362258981,1748122241770,-430.0,0.00022191,2]
[362258982,1748122241780,-430.0,0.00022191,2]
[362258983,1748122241790,-430.0,0.00022191,2]
[362258984,1748122241799,-430.0,0.00022191,2]
[362258985,1748122241808,-430.0,0.00022191,2]
[362258986,1748122241817,-430.0,0.00022191,2]
[362258987,1748122241828,-430.0,0.00022191,2]
[362258988,1748122241838,-376.4285915,0.00022191,2]
[362258989,1748122241848,-470.0,0.00022191,2]
[362258990,1748122241858,-1488.52,0.00022191,2]
[362258991,1748122241867,-430.0,0.00022191,2]
[362258992,1748122241876,-430.0,0.00022191,2]
[362258993,1748122241886,-430.0,0.00022191,2]
[362258994,1748122241896,-430.0,0.00022191,2]
[362258995,1748122241905,-430.0,0.00022191,2]
[362258996,1748122241915,-430.0,0.00022191,2]
[362258997,1748122241925,-430.0,0.00022191,2]
[362258998,1748122241934,-692.62,0.00022191,2]
[362258999,1748122241943,-430.0,0.00022191,2]
[362259000,1748122241953,-2264.23,0.00022191,2]
[362259001,1748122241962,-430.0,0.00022191,2]
[362259002,1748122241972,-691.04,0.00022191,2]
[362259003,1748122241981,-430.0,0.00022191,2]
[362259004,1748122241990,-430.0,0.00022191,2]
[362259005,1748122242000,-200.58551641,0.00022191,2]
[362259006,1748122242009,-430.0,0.00022191,2]
[362259007,1748122242018,-430.0,0.00022191,2]
[362259008,1748122242028,-430.0,0.00022191,2]
[362259011,1748122242146,-430.0,0.00022191,2]
[362259012,1748122242156,-430.0,0.00022191,2]
[362259013,1748122242165,-430.0,0.00022191,2]
[362259014,1748122242175,-430.0,0.00022191,2]
[362259015,1748122242185,-430.0,0.00022191,2]
[362259016,1748122242196,-430.0,0.00022191,2]
[362259017,1748122242206,-842.07,0.00022191,2]
[362259018,1748122242215,-430.0,0.00022191,2]
[362259019,1748122242225,-430.0,0.00022191,2]
[362259020,1748122242234,-430.0,0.00022191,2]
[362259021,1748122242244,-430.0,0.00022191,2]
[362259022,1748122242254,-430.0,0.00022191,2]
[362259023,1748122242263,-430.0,0.00022191,2]
[362259024,1748122242273,-430.0,0.00022191,2]
[362259025,1748122242282,-430.0,0.00022191,2]
[362259026,1748122242292,-430.0,0.00022191,2]
[362259027,1748122242302,-695.93,0.00022191,2]
[362259028,1748122242311,-430.0,0.00022191,2]
[362259029,1748122242321,-430.0,0.00022191,2]
[362259030,1748122242331,-500.0,0.00022231,2]
[362259031,1748122242341,-4255.83212457,0.00022232,2]
[362259033,1748122242529,-2206.42418607,0.00022232,2]
[362259034,1748122242540,-5200.86830922,0.00022232,2]
[362259040,1748122243221,-218.81819079,0.00021021,2]
[362259041,1748122243231,-500.0,0.00021021,2]
[362259042,1748122243240,-500.0,0.00021021,2]
[362259043,1748122243249,-495.30060969,0.00021021,2]
[362259044,1748122243259,-500.0,0.00021021,2]
[362259045,1748122243268,-500.0,0.00021021,2]
[362259046,1748122243277,-362.59147303,0.00021021,2]
[362259047,1748122243288,-137.40852697,0.00021021,2]
[362259048,1748122243297,-500.0,0.00021021,2]
[362259049,1748122243306,-500.0,0.00021021,2]
[362259050,1748122243315,-500.0,0.00021021,2]
[362259051,1748122243325,-500.0,0.00021021,2]
[362259052,1748122243334,-500.0,0.00021021,2]
[362259053,1748122243344,-500.0,0.00021021,2]
[362259054,1748122243353,-408.08347866,0.00021021,2]
[362259055,1748122243363,-445.24520144,0.00021021,2]
[362259056,1748122243374,-500.0,0.00021021,2]
[362259057,1748122243383,-500.0,0.00021021,2]
[362259058,1748122243392,-500.0,0.00021021,2]
[362259059,1748122243402,-500.0,0.00021021,2]
[362259060,1748122243412,-383.81317076,0.00021021,2]
[362259061,1748122243422,-291.37101624,0.00021021,2]
[362259062,1748122243432,-500.0,0.00021021,2]
[362259063,1748122243443,-500.0,0.00021021,2]
[362259064,1748122243452,-208.50860593,0.00021021,2]
[362259065,1748122243465,-291.49139407,0.00021021,2]
[362259066,1748122243475,-500.0,0.00021021,2]
[362259067,1748122243485,-500.0,0.00021021,2]
[362259068,1748122243495,-500.0,0.00021021,2]
[362259069,1748122243504,-500.0,0.00021021,2]
[362259070,1748122243516,-500.0,0.00021021,2]
[362259071,1748122243526,-500.0,0.00021021,2]
[362259072,1748122243536,-500.0,0.00021021,2]
[362259073,1748122243547,-500.0,0.00021021,2]
[362259074,1748122243557,-500.0,0.00021021,2]
[362259076,1748122243567,-500.0,0.00021021,2]
[362259077,1748122243578,-500.0,0.00021021,2]
[362259078,1748122243588,-500.0,0.00021021,2]
[362259079,1748122243598,-500.0,0.00021021,2]
[362259080,1748122243607,-506.22914166,0.00021021,2]
[362259081,1748122243617,-500.0,0.00021021,2]
[362259082,1748122243627,-500.0,0.00021021,2]
[362259083,1748122243636,-500.0,0.00021021,2]
[362259084,1748122243646,-500.0,0.00021021,2]
[362259085,1748122243656,-338.49888159,0.00021021,2]
[362259086,1748122243669,-161.50111841,0.00021021,2]
[362259087,1748122243678,-500.0,0.00021021,2]
[362259088,1748122243688,-500.0,0.00021021,2]
[362259089,1748122243697,-500.0,0.00021021,2]
[362259090,1748122243707,-500.0,0.00021021,2]
[362259091,1748122243717,-500.0,0.00021021,2]
[362259092,1748122243726,-500.0,0.00021021,2]
[362259093,1748122243735,-500.0,0.00021021,2]
[362259094,1748122243744,-32.14798162,0.00021021,2]
[362259095,1748122243756,-467.85201838,0.00021021,2]
[362259096,1748122243765,-500.0,0.00021021,2]
[362259097,1748122243775,-500.0,0.00021021,2]
[362259098,1748122243783,-500.0,0.00021021,2]
[362259099,1748122243792,-500.0,0.00021021,2]
[362259100,1748122243802,-500.0,0.00021021,2]
[362259101,1748122243812,-500.0,0.00021021,2]
[362259102,1748122243820,-500.0,0.00021021,2]
[362259103,1748122243830,-500.0,0.00021021,2]
[362259104,1748122243839,-500.0,0.00021021,2]
[362259105,1748122243848,-500.0,0.00021021,2]
[362259106,1748122243857,-500.0,0.00021021,2]
[362259107,1748122243866,-500.0,0.00021021,2]
[362259108,1748122243878,-500.0,0.00021021,2]
[362259109,1748122243888,-500.0,0.00021021,2]
[362259110,1748122243898,-500.0,0.00021021,2]
[362259111,1748122243908,-500.0,0.00021021,2]
[362259112,1748122243917,-500.0,0.00021021,2]
[362259113,1748122243927,-500.0,0.00021021,2]
[362259114,1748122243937,-500.0,0.00021021,2]
[362259115,1748122243946,-376.72325072,0.00021021,2]
[362259116,1748122243958,-123.27674928,0.00021021,2]
[362259117,1748122243967,-500.0,0.00021021,2]
[362259118,1748122243978,-314.75282783,0.00021021,2]
[362259119,1748122243989,-185.24717217,0.00021021,2]
[362259120,1748122243998,-215.91282783,0.00021021,2]
[362259121,1748122244010,-284.08717217,0.00021021,2]
[362259122,1748122244020,-500.0,0.00021021,2]
[362259123,1748122244030,-500.0,0.00021021,2]
[362259124,1748122244039,-253.92552403,0.00021917,2]
[362259125,1748122244161,-176.07447597,0.00021917,2]
[362259126,1748122244171,-430.0,0.00021917,2]
[362259127,1748122244181,-400.0,0.00021917,2]
[362259128,1748122244190,-590.27622606,0.00021918,2]
[362259129,1748122244200,-352.11002534,0.00022191,2]
[362259130,1748122244211,-77.88997466,0.00022191,2]
[362259131,1748122244221,-430.0,0.00022191,2]
[362259132,1748122244230,-790.3436576,0.00022232,2]
[362259133,1748122244242,-1466.18961146,0.00022232,2]
[362259134,1748122244382,-340.365,0.00022232,2]
[362259135,1748122244393,-933.24475225,0.00022232,2]
[362259136,1748122244522,-430.0,0.00021917,2]
[362259137,1748122244532,-430.0,0.00022191,2]
[362259138,1748122244541,-7634.49425206,0.00022232,2]
[362259139,1748122244552,-412.04393149,0.00022232,2]
[362259140,1748122244564,-1649.36721682,0.00022232,2]
[362259141,1748122244575,-10.82695846,0.00022232,2]
[362259142,1748122244585,-396.94184363,0.00022345,2]
[362259143,1748122244595,-207.4,0.00022375,2]
[362259144,1748122244606,-500.0,0.00022464,2]
[362259145,1748122244616,-500.0,0.00022464,2]
[362259146,1748122244626,-430.0,0.00022465,2]
[362259147,1748122244635,-430.0,0.00022465,2]
[362259148,1748122244645,-237.33367671,0.00022465,2]
[362259149,1748122244657,-192.66632329,0.00022465,2]
[362259150,1748122244666,-450.0,0.00022465,2]
[362259151,1748122244676,-430.0,0.00022465,2]
[362259152,1748122244686,-430.0,0.00022465,2]
[362259153,1748122244697,-430.0,0.00022465,2]
[362259154,1748122244708,-430.0,0.00022465,2]
[362259155,1748122244718,-430.0,0.00022465,2]
[362259156,1748122244727,-430.0,0.00022465,2]
[362259157,1748122244737,-430.0,0.00022465,2]
[362259158,1748122244746,-430.0,0.00022465,2]
[362259159,1748122244756,-430.0,0.00022465,2]
[362259160,1748122244765,-430.0,0.00022465,2]
[362259161,1748122244775,-430.0,0.00022465,2]
[362259162,1748122244784,-430.0,0.00022465,2]
[362259163,1748122244793,-563.24,0.00022465,2]
[362259164,1748122244803,-430.0,0.00022465,2]
[362259165,1748122244812,-430.0,0.00022465,2]
[362259166,1748122244822,-430.0,0.00022465,2]
[362259167,1748122244831,-168.29192913,0.00022465,2]
[362259168,1748122244841,-430.0,0.00022465,2]
[362259169,1748122244851,-430.0,0.00022465,2]
[362259170,1748122244861,-430.0,0.00022465,2]
[362259171,1748122244870,-430.0,0.00022465,2]
[362259172,1748122244880,-430.0,0.00022465,2]
[362259173,1748122244889,-433.89,0.00022465,2]
[362259174,1748122244899,-525.62,0.00022465,2]
[362259175,1748122244908,-430.0,0.00022465,2]
[362259176,1748122244917,-430.0,0.00022465,2]
[362259177,1748122244926,-408.66108445,0.00022465,2]
[362259178,1748122244936,-1341.19,0.00022465,2]
[362259179,1748122244945,-430.0,0.00022465,2]
[362259180,1748122244955,-430.0,0.00022465,2]
[362259181,1748122244965,-430.0,0.00022465,2]
[362259182,1748122244975,-315.79698677,0.00022465,2]
[362259183,1748122244986,-430.0,0.00022465,2]
[362259184,1748122244995,-586.45,0.00022465,2]
[362259185,1748122245005,-430.0,0.00022465,2]
[362259186,1748122245015,-664.09,0.00022465,2]
[362259187,1748122245024,-38.66784447,0.00022465,2]
[362259188,1748122245037,-391.33215553,0.00022465,2]
[362259189,1748122245046,-430.0,0.00022465,2]
[362259190,1748122245055,-400.0,0.00022465,2]
[362259191,1748122245064,-430.0,0.00022465,2]
[362259192,1748122245074,-430.0,0.00022465,2]
[362259193,1748122245083,-370.0,0.00022465,2]
[362259194,1748122245093,-430.0,0.00022465,2]
[362259195,1748122245102,-430.0,0.00022465,2]
[362259196,1748122245112,-430.0,0.00022465,2]
[362259197,1748122245121,-430.0,0.00022465,2]
[362259198,1748122245131,-430.0,0.00022465,2]
[362259199,1748122245140,-430.0,0.00022465,2]
[362259200,1748122245157,-320.88518851,0.00022465,2]
[362259201,1748122245167,-430.0,0.00022465,2]
[362259202,1748122245176,-430.0,0.00022465,2]
[362259203,1748122245187,-430.0,0.00022465,2]
[362259204,1748122245197,-430.0,0.00022465,2]
[362259205,1748122245207,-516.78,0.00022465,2]
[362259206,1748122245217,-430.0,0.00022465,2]
[362259207,1748122245227,-315.43110203,0.00022465,2]
[362259208,1748122245236,-430.0,0.00022465,2]
[362259209,1748122245245,-370.0,0.00022465,2]
[362259210,1748122245256,-430.0,0.00022465,2]
[362259211,1748122245266,-430.0,0.00022465,2]
[362259212,1748122245275,-741.19,0.00022465,2]
[362259213,1748122245285,-430.0,0.00022465,2]
[362259214,1748122245295,-430.0,0.00022465,2]
[362259215,1748122245305,-430.0,0.00022465,2]
[362259216,1748122245314,-430.0,0.00022465,2]
[362259217,1748122245323,-155.75133153,0.00022465,2]
[362259218,1748122245336,-274.24866847,0.00022465,2]
[362259219,1748122245345,-370.0,0.00022465,2]
[362259220,1748122245355,-430.0,0.00022465,2]
[362259221,1748122245364,-443.98,0.00022465,2]
[362259222,1748122245374,-430.0,0.00022465,2]
[362259223,1748122245384,-251.76779662,0.00022465,2]
[362259224,1748122245395,-178.23220338,0.00022465,2]
[362259225,1748122245405,-430.0,0.00022465,2]
[362259226,1748122245415,-27.80175075,0.00022465,2]
[362259230,1748122246195,-400.0,0.00021917,2]
[362259231,1748122246205,-196.36161559,0.00022465,2]
[362259232,1748122246215,-210.82684882,0.00022465,2]
[362259233,1748122246228,-219.17315118,0.00022465,2]
[362259234,1748122246237,-490.0,0.00022465,2]
[362259235,1748122246247,-430.0,0.00022465,2]
[362259236,1748122246256,-550.59,0.00022465,2]
[362259237,1748122246266,-151.0,0.00022465,7]
[362259238,1748122246275,-1286.0577469,0.00022465,2]
[362259239,1748122246363,-430.0,0.00021917,2]
[362259240,1748122246373,-2281.19064659,0.00022465,2]
[362259365,1748123158500,159.569344,0.00013699,2]
[362259367,1748123173392,969.41,0.00021918,30]
[362260125,1748123444500,-506.7509516,0.00019818,2]
[362260126,1748123444510,-185.606855,0.00021159,2]
[362260127,1748123444519,-1994.9537271,0.00021538,2]
[362260128,1748123444529,-300.0,0.00021915,2]
[362260129,1748123444539,-300.0,0.00021915,2]
[362260130,1748123444549,-476.8190018,0.00021916,2]
[362260131,1748123444559,-500.0,0.00021916,2]
[362260132,1748123444568,-209.31257453,0.00021916,2]
[362260133,1748123444578,-500.0,0.00021916,2]
[362260134,1748123444589,-500.0,0.00021916,2]
[362260135,1748123444598,-500.0,0.00021916,2]
[362260136,1748123444618,-500.0,0.00021916,2]
[362260138,1748123444628,-500.0,0.00021916,2]
[362260140,1748123444638,-500.0,0.00021916,2]
[362260141,1748123444648,-500.0,0.00021916,2]
[362260142,1748123444658,-500.0,0.00021916,2]
[362260144,1748123444668,-500.0,0.00021916,2]
[362260145,1748123444678,-18.41768499,0.00021916,2]
[362260190,1748124218354,166.587049,0.00013699,2]
[362260196,1748124475551,-656.22915376,0.000189,2]
[362260197,1748124518217,-344.38854219,0.000189,2]
[362260232,1748124632403,-93.09756032,0.000189,2]
[362260234,1748124632413,-5000.0,0.00019831,2]
[362260236,1748124632423,-300.0,0.00020482,2]
[362260238,1748124632433,-824.0,0.00020482,2]
[362260240,1748124632447,-300.0,0.00020482,2]
[362260242,1748124632456,-3570.60941996,0.00020483,3]
[362260244,1748124632469,-30114.49459493,0.00020483,3]
[362260245,1748124632479,-314.61239117,0.00020483,3]
[362260248,1748124632489,-500.0,0.00020483,2]
[362260250,1748124632498,-202.58000776,0.00020483,2]
[362260252,1748124632508,-500.0,0.00020483,2]